[Event "SVK-ch Open 2018"]
[Site "Banska Stiavnica"]
[Date "2018.07.08"]
[Round "2"]
[White "Brozyna, Mateusz"]
[Black "Druska, Juraj"]
[Result "0-1"]
[ECO "C11"]
[WhiteElo "2098"]
[BlackElo "2439"]
[Annotator "NA"]
[PlyCount "106"]
[EventDate "2018.07.07"]
[EventType "swiss"]
[EventCountry "SVK"]
[SourceTitle "playchess.com"]
[Source "ChessBase"]
[SourceQuality "1"]
[TimeControl "40/5400+30:1800+30"]

1. e4 {[%emt 0:00:00]} e6 {[%emt 0:00:00]} 2. d4 {[%emt 0:00:00]} d5 {[%emt 0:00:00]} 3. Nc3 {[%emt 0:00:00]} Nf6 {[%emt 0:00:00]} 4. e5 {[%emt 0:00:00]} Nfd7 {[%emt 0:00:00]} 5. f4 {[%emt 0:00:00]} c5 {[%emt 0:00:04]} 6. Nf3 {[%emt 0:00:00]} Nc6 {[%emt 0:00:04]} 7. Be3 {[%emt 0:00:05]} Be7 {[%emt 0:00:04]} 8. Qd2 {[%emt 0:00:06]} O-O {[%emt 0:00:06] LiveBook: 1004 Games} 9. dxc5 {[%emt 0:00:20]} Bxc5 {[%emt 0:00:06] C11: French: Classical System: 4 e5 and 4 Bg5 dxe4} 10. O-O-O {[%emt 0:00:09]} Qa5 {[%emt 0:00:02]} 11. a3 {[%emt 0:02:54]} Rd8 {[%emt 0:13:45]} 12. Nd4 {[%emt 0:17:29]} (12. Bxc5 Nxc5 13. h4 Bd7 14. h5 h6 15. g4 Be8 16. Qe3 d4 17. Nxd4 Nxd4 18. Rxd4 {½-½ (26) Inarkiev,E (2689)-Volkov,S (2645) St Petersburg 2017}) 12... Nxd4 {[%emt 0:08:11]} 13. Bxd4 {[%emt 0:00:11]} Bxd4 {[%emt 0:00:06]} 14. Qxd4 {[%emt 0:00:07]} Qc5 {[%emt 0:00:09]} 15. Nb5 $146 {[%emt 0:11:07]} ({Predecessor:} 15. Ne2 b6 16. Qd3 a5 17. Nd4 {1-0 (55) Vishnu,P (2465)-Batchuluun,T (2521) Sharjah 2014}) 15... b6 {[%emt 0:06:43]} 16. c4 {[%emt 0:21:43]} Bb7 {[%emt 0:30:39]} 17. Nd6 {[%emt 0:07:19]} Bc6 {[%emt 0:00:43]} 18. Qxc5 {[%emt 0:02:01]} bxc5 {[%emt 0:23:10]} 19. cxd5 {[%emt 0:00:33]} Bxd5 {[%emt 0:00:07]} 20. Rd2 {[%emt 0:06:37]} f6 {[%emt 0:07:22]} 21. Bb5 {[%emt 0:12:36]} fxe5 {[%emt 0:05:12]} 22. Bxd7 {[%emt 0:00:47]} Rxd7 {[%emt 0:00:00]} 23. fxe5 {[%emt 0:00:03]} Rf8 {[%emt 0:00:30]} 24. Re1 {[%emt 0:03:57]} h5 {[%emt 0:01:09]} 25. Ree2 {[%emt 0:05:28]} Rf1+ {[%emt 0:01:02]} 26. Rd1 {[%emt 0:00:38]} Rf4 {[%emt 0:00:09]} 27. Rdd2 {[%emt 0:01:42]} Rf1+ {[%emt 0:00:36]} 28. Kc2 {[%emt 0:00:56]} Rd8 {[%emt 0:00:27]} 29. Ne4 {[%emt 0:05:19]} Rb8 {[%emt 0:02:02]} 30. Nxc5 {[%emt 0:00:38]} Rc8 {[%emt 0:00:29]} 31. b4 {[%emt 0:00:11]} a5 {[%emt 0:00:11]} 32. Kc3 {[%emt 0:02:18]} Ra1 {[%emt 0:02:12]} 33. Rxd5 {[%emt 0:00:34]} exd5 {[%emt 0:00:00]} 34. e6 {[%emt 0:00:21]} Kf8 {[%emt 0:01:07]} 35. Kb2 {[%emt 0:00:50]} Rf1 {[%emt 0:00:25]} 36. e7+ {[%emt 0:00:04]} Ke8 {[%emt 0:00:14]} 37. Nb7 {[%emt 0:00:03]} Rf6 {[%emt 0:00:14]} 38. Nxa5 {[%emt 0:00:41]} Rc7 {[%emt 0:00:24]} 39. Re5 {[%emt 0:00:49]} d4 {[%emt 0:00:18]} 40. Rxh5 {[%emt 0:00:32]} Rd6 {[%emt 0:01:01]} ({Worse is} 40... Rxe7 41. Kb3 $11) ({Much less strong is} 40... Kxe7 41. Rh3 $15) (40... Rc3 $19 {is more deadly.} 41. b5 Rf2+ 42. Kb1 Kxe7 43. Nc6+ Kd6 44. Nxd4 Rd3 45. Nf5+ Kc7) 41. b5 {[%emt 0:30:48] [#]} d3 $1 {[%emt 0:10:30]} 42. Nc6 {[%emt 0:00:00]} Rxe7 {[%emt 0:00:16]} 43. Rh8+ {[%emt 0:00:00]} Kf7 {[%emt 0:00:34]} 44. Rd8 {[%emt 0:00:00]} Re2+ {[%emt 0:04:41]} 45. Kb3 {[%emt 0:00:00]} Rxd8 {[%emt 0:00:56]} (45... Ree6 $142 46. Ne5+ Ke7 47. Nc6+ Rxc6 48. Rxd3 Rc1) 46. Nxd8+ {[%emt 0:00:00]} Ke7 {[%emt 0:06:06]} 47. Nc6+ {[%emt 0:00:00]} Kd6 $19 {[%emt 0:00:01]} 48. Kc3 {[%emt 0:00:00]} d2 {[%emt 0:00:28]} 49. Kc2 {[%emt 0:00:00]} Rxg2 {[%emt 0:00:19]} 50. h4 {[%emt 0:00:00]} Kc5 {[%emt 0:02:41]} 51. a4 {[%emt 0:00:00]} Rh2 {[%emt 0:01:47]} 52. Nd8 {[%emt 0:00:00]} Kd4 {[%emt 0:01:42]} 53. Ne6+ {[%emt 0:00:00]} Ke3 {[%emt 0:00:54]} 0-1

[Event "SVK-ch Open 2018"]
[Site "Banska Stiavnica"]
[Date "2018.07.08"]
[Round "2"]
[White "Kerdik, Adam"]
[Black "Kucera, Michal"]
[Result "1/2-1/2"]
[ECO "E32"]
[WhiteElo "2091"]
[BlackElo "1921"]
[Annotator "NA"]
[PlyCount "59"]
[EventDate "2018.07.07"]
[EventType "swiss"]
[EventCountry "SVK"]
[SourceTitle "playchess.com"]
[Source "ChessBase"]
[SourceQuality "1"]
[TimeControl "40/5400+30:1800+30"]

1. d4 {[%emt 0:00:00]} Nf6 {[%emt 0:00:00]} 2. c4 {[%emt 0:00:00]} e6 {[%emt 0:00:00]} 3. Nc3 {[%emt 0:00:00]} Bb4 {[%emt 0:00:00]} 4. Qc2 {[%emt 0:00:00]} O-O {[%emt 0:01:02]} 5. Nf3 {[%emt 0:00:43]} d5 {[%emt 0:03:46]} 6. cxd5 {[%emt 0:00:45]} exd5 {[%emt 0:01:07]} 7. Bg5 {[%emt 0:01:10]} Be6 {[%emt 0:05:16]} 8. a3 {[%emt 0:03:12]} Be7 {[%emt 0:01:51]} 9. e3 {[%emt 0:00:56]} h6 {[%emt 0:02:22]} 10. Bh4 {[%emt 0:02:48]} Nbd7 {[%emt 0:05:52]} 11. b4 {[%emt 0:02:22]} c6 $11 {[%emt 0:09:30]} 12. Bd3 {[%emt 0:03:17]} a5 {[%emt 0:06:04]} 13. Rb1 {[%emt 0:13:48]} axb4 {[%emt 0:02:34]} 14. axb4 {[%emt 0:00:28]} Ne8 {[%emt 0:09:49]} 15. Bxe7 {[%emt 0:09:18]} Qxe7 {[%emt 0:00:06]} 16. Na4 {[%emt 0:01:13]} b5 {[%emt 0:07:54]} 17. Nc5 {[%emt 0:02:48]} Nxc5 {[%emt 0:00:30]} 18. dxc5 {[%emt 0:00:40]} Nc7 {[%emt 0:03:04]} 19. Nd4 {[%emt 0:01:18]} Bd7 {[%emt 0:00:12]} 20. O-O {[%emt 0:00:46]} g6 {[%emt 0:03:25]} 21. Ra1 {[%emt 0:12:14]} Qe5 {[%emt 0:05:55]} 22. Qc3 {[%emt 0:06:14]} Qg5 {[%emt 0:04:42]} 23. Nf3 {[%emt 0:02:40]} Qe7 {[%emt 0:00:18]} 24. Rxa8 {[%emt 0:02:33]} Rxa8 {[%emt 0:02:26]} 25. Ra1 {[%emt 0:00:08]} Rxa1+ {[%emt 0:11:24]} 26. Qxa1 {[%emt 0:00:06]} Ne8 {[%emt 0:00:16]} 27. Qe5 {[%emt 0:02:48]} Qxe5 {[%emt 0:00:58]} 28. Nxe5 {[%emt 0:01:46]} Nf6 {[%emt 0:00:03]} 29. f3 {[%emt 0:09:23]} Kf8 {[%emt 0:01:03]} 30. Kf2 {[%emt 0:09:14]} 1/2-1/2

[Event "SVK-ch Open 2018"]
[Site "Banska Stiavnica"]
[Date "2018.07.08"]
[Round "2"]
[White "Pniaczek, Marek"]
[Black "Szeberenyi, Adam"]
[Result "0-1"]
[ECO "B40"]
[WhiteElo "2082"]
[BlackElo "2372"]
[Annotator "NA"]
[PlyCount "54"]
[EventDate "2018.07.07"]
[EventType "swiss"]
[EventCountry "SVK"]
[SourceTitle "playchess.com"]
[Source "ChessBase"]
[SourceQuality "1"]
[TimeControl "40/5400+30:1800+30"]

1. e4 {[%emt 0:00:00]} c5 {[%emt 0:00:00]} 2. Nf3 {[%emt 0:00:00]} e6 {[%emt 0:00:00]} 3. d4 {[%emt 0:00:00]} cxd4 {[%emt 0:00:00]} 4. Nxd4 {[%emt 0:00:00]} Bc5 {[%emt 0:00:00]} 5. Be3 {[%emt 0:10:02]} Qb6 {[%emt 0:00:08]} 6. Na3 {[%emt 0:02:03]} d5 {[%emt 0:22:10]} 7. exd5 {[%emt 0:23:44]} exd5 {[%emt 0:01:21]} 8. c3 {[%emt 0:11:20]} Nc6 {[%emt 0:11:25]} 9. Bb5 $11 {[%emt 0:12:58]} Bd7 {[%emt 0:23:44]} 10. Qa4 {[%emt 0:03:22]} Nf6 {[%emt 0:02:06]} 11. O-O {[%emt 0:11:28]} O-O {[%emt 0:00:25]} 12. Bxc6 {[%emt 0:01:58]} bxc6 {[%emt 0:05:44]} 13. b4 {[%emt 0:02:38]} Bd6 {[%emt 0:00:38]} 14. Qd1 {[%emt 0:03:16]} Ng4 {[%emt 0:02:37]} 15. Nac2 {[%emt 0:00:53]} Bxh2+ {[%emt 0:02:37]} 16. Kh1 {[%emt 0:00:01]} Be5 {[%emt 0:03:16]} 17. f3 {[%emt 0:01:17]} Nxe3 {[%emt 0:01:40]} 18. Nxe3 {[%emt 0:00:04]} c5 {[%emt 0:00:15]} 19. Ndf5 {[%emt 0:00:51]} Bxf5 {[%emt 0:02:28]} 20. Nxf5 {[%emt 0:00:02]} Qf6 {[%emt 0:01:16]} 21. Qd3 {[%emt 0:01:08]} c4 {[%emt 0:01:48]} 22. Qc2 {[%emt 0:00:06]} Bxc3 {[%emt 0:01:08]} 23. Rad1 {[%emt 0:00:18]} d4 {[%emt 0:00:35]} 24. Qe4 {[%emt 0:00:30]} Rae8 {[%emt 0:02:20]} 25. Qg4 {[%emt 0:00:27]} h5 {[%emt 0:03:04]} 26. Qh3 {[%emt 0:03:11]} g6 {[%emt 0:00:18]} 27. Ng3 {[%emt 0:00:22]} Bxb4 {[%emt 0:00:20]} 0-1

[Event "SVK-ch Open 2018"]
[Site "Banska Stiavnica"]
[Date "2018.07.08"]
[Round "2"]
[White "Sosovicka, Jakub"]
[Black "Kanakova, Natalie"]
[Result "1-0"]
[ECO "B32"]
[WhiteElo "2078"]
[BlackElo "2206"]
[Annotator "NA"]
[PlyCount "67"]
[EventDate "2018.07.07"]
[EventType "swiss"]
[EventCountry "SVK"]
[SourceTitle "playchess.com"]
[Source "ChessBase"]
[SourceQuality "1"]
[TimeControl "40/5400+30:1800+30"]

1. e4 {[%emt 0:00:00]} c5 {[%emt 0:00:00]} 2. Nf3 {[%emt 0:00:00]} Nc6 {[%emt 0:00:00]} 3. d4 {[%emt 0:00:00]} cxd4 {[%emt 0:00:00]} 4. Nxd4 {[%emt 0:00:00]} e5 {[%emt 0:00:00]} 5. Nb5 {[%emt 0:00:37]} a6 {[%emt 0:00:20]} 6. Nd6+ {[%emt 0:01:08]} Bxd6 {[%emt 0:00:08]} 7. Qxd6 {[%emt 0:00:08]} Qe7 {[%emt 0:00:06]} 8. Qd1 {[%emt 0:02:36]} Nf6 {[%emt 0:00:11]} 9. Nc3 {[%emt 0:01:05]} d6 {[%emt 0:00:21]} 10. Bg5 {[%emt 0:02:32]} Be6 {[%emt 0:00:25]} 11. Nd5 {[%emt 0:02:23]} Bxd5 {[%emt 0:00:17]} 12. exd5 {[%emt 0:00:19]} Nb8 {[%emt 0:00:09]} 13. Be2 {[%emt 0:03:56] LiveBook: 16 Games} Nbd7 {[%emt 0:01:13]} 14. O-O {[%emt 0:00:51]} O-O {[%emt 0:00:17]} 15. c4 {[%emt 0:02:03]} h6 {[%emt 0:00:56]} 16. Be3 {[%emt 0:03:03]} Nh7 {[%emt 0:00:51]} 17. b4 {[%emt 0:06:01]} f5 {[%emt 0:01:22]} 18. f3 {[%emt 0:03:47]} a5 {[%emt 0:05:22]} 19. a3 {[%emt 0:02:54]} Nhf6 {[%emt 0:02:04]} 20. Qd2 {[%emt 0:05:09]} f4 {[%emt 0:17:05]} 21. Bf2 {[%emt 0:00:23]} g5 {[%emt 0:02:27]} 22. c5 $14 {[%emt 0:28:21]} e4 {[%emt 0:02:11]} 23. fxe4 {[%emt 0:01:19]} Nxe4 {[%emt 0:00:48]} 24. Qc2 {[%emt 0:01:00]} axb4 {[%emt 0:11:22]} 25. Bd4 {[%emt 0:13:25]} Rxa3 {[%emt 0:12:04]} 26. cxd6 {[%emt 0:01:48]} Qe8 {[%emt 0:01:02]} 27. Rxa3 {[%emt 0:03:56]} bxa3 {[%emt 0:00:26]} 28. Bd3 {[%emt 0:01:17]} Nef6 {[%emt 0:11:58]} 29. Bg6 {[%emt 0:01:15]} Rf7 {[%emt 0:01:38]} 30. Qf5 {[%emt 0:05:11]} b5 {[%emt 0:05:06]} 31. Rc1 {[%emt 0:04:23]} a2 {[%emt 0:04:30]} 32. Qe6 {[%emt 0:00:55]} Nf8 {[%emt 0:08:06]} 33. Bxf7+ {[%emt 0:00:29]} Qxf7 {[%emt 0:00:06]} 34. Qxf6 {[%emt 0:00:07]} 1-0

[Event "SVK-ch Open 2018"]
[Site "Banska Stiavnica"]
[Date "2018.07.08"]
[Round "2"]
[White "Volcko, Richard"]
[Black "Petran, Peter"]
[Result "0-1"]
[ECO "B06"]
[WhiteElo "2068"]
[BlackElo "2302"]
[Annotator "NA"]
[PlyCount "154"]
[EventDate "2018.07.07"]
[EventType "swiss"]
[EventCountry "SVK"]
[SourceTitle "playchess.com"]
[Source "ChessBase"]
[SourceQuality "1"]
[TimeControl "40/5400+30:1800+30"]

1. e4 {[%emt 0:00:00]} g6 {[%emt 0:00:00]} 2. d4 {[%emt 0:00:00]} Bg7 {[%emt 0:00:00]} 3. Nc3 {[%emt 0:00:00]} c6 {[%emt 0:00:00]} 4. Nf3 {[%emt 0:00:15]} b5 {[%emt 0:00:12]} 5. Bd3 {[%emt 0:01:23]} d6 {[%emt 0:00:06]} 6. Be3 {[%emt 0:00:30]} Nd7 {[%emt 0:00:43]} 7. Qd2 {[%emt 0:00:59]} Qc7 {[%emt 0:00:12]} 8. O-O {[%emt 0:03:13]} Ngf6 {[%emt 0:00:24]} 9. Bh6 {[%emt 0:03:09]} O-O {[%emt 0:00:14]} 10. Bxg7 {[%emt 0:00:12]} Kxg7 {[%emt 0:00:05]} 11. a3 {[%emt 0:10:02]} a6 {[%emt 0:00:18] B06: Modern Defence} 12. Rad1 $146 {[%emt 0:06:54]} ({Predecessor:} 12. Rfe1 e5 {0-1 (33) Schnock,S (2046)-Heck,N (2320) Dresden 2004}) 12... e5 {[%emt 0:05:14]} 13. Rfe1 {[%emt 0:04:40]} Re8 {[%emt 0:03:51]} 14. Bf1 {[%emt 0:05:11]} Bb7 {[%emt 0:01:42]} 15. dxe5 {[%emt 0:13:10]} dxe5 {[%emt 0:00:10]} 16. Qe3 {[%emt 0:03:05]} h6 {[%emt 0:05:18]} 17. h3 {[%emt 0:05:57]} Rad8 {[%emt 0:03:00]} 18. Rd2 {[%emt 0:02:22]} c5 {[%emt 0:07:59]} 19. Red1 {[%emt 0:07:04]} b4 {[%emt 0:02:05]} 20. axb4 {[%emt 0:03:39]} cxb4 {[%emt 0:00:44]} 21. Nd5 {[%emt 0:00:19]} Bxd5 {[%emt 0:00:22]} 22. exd5 {[%emt 0:00:20]} Qd6 {[%emt 0:03:48]} 23. c4 {[%emt 0:04:12]} a5 {[%emt 0:01:21]} 24. Rc2 {[%emt 0:04:34]} Nc5 {[%emt 0:00:48]} 25. Nd2 {[%emt 0:00:20]} a4 {[%emt 0:00:27]} 26. f3 {[%emt 0:01:46]} Ra8 {[%emt 0:00:17]} 27. Ne4 {[%emt 0:00:29]} Nfxe4 {[%emt 0:00:16]} 28. fxe4 {[%emt 0:00:07]} b3 {[%emt 0:03:24]} 29. Rcd2 {[%emt 0:02:37]} a3 {[%emt 0:00:09]} 30. bxa3 {[%emt 0:00:44]} Rxa3 {[%emt 0:00:06]} 31. Rb1 {[%emt 0:00:30]} Rea8 {[%emt 0:00:16]} 32. Rdb2 {[%emt 0:00:44]} Rb8 {[%emt 0:07:23]} 33. Be2 {[%emt 0:01:40]} Rb4 {[%emt 0:03:11]} 34. Kh1 {[%emt 0:04:37]} f6 {[%emt 0:02:42]} 35. Kg1 {[%emt 0:01:41]} h5 {[%emt 0:00:08]} 36. h4 {[%emt 0:03:02]} Qb6 {[%emt 0:01:21]} 37. Kh2 {[%emt 0:03:14]} Ra2 {[%emt 0:04:14]} 38. Bd1 {[%emt 0:03:02]} Rxb2 {[%emt 0:06:02]} 39. Rxb2 {[%emt 0:00:09]} Rxc4 {[%emt 0:04:32]} 40. Rxb3 {[%emt 0:01:34]} Qc7 {[%emt 0:03:13]} 41. Rc3 {[%emt 0:18:47]} Nxe4 {[%emt 0:03:43]} 42. Rxc4 {[%emt 0:00:53]} Qxc4 {[%emt 0:00:06]} 43. Qa7+ {[%emt 0:01:43]} Kf8 {[%emt 0:04:34]} 44. Qb8+ {[%emt 0:00:38]} Ke7 {[%emt 0:02:11]} 45. Qa7+ {[%emt 0:02:35]} Kd8 {[%emt 0:04:19]} 46. Qa8+ {[%emt 0:04:22]} Qc8 {[%emt 0:02:36]} 47. Qa5+ {[%emt 0:01:44]} Ke7 {[%emt 0:02:15]} 48. Ba4 {[%emt 0:02:22]} Nd6 {[%emt 0:06:26]} 49. Bc6 {[%emt 0:01:05]} f5 {[%emt 0:01:27]} 50. Qa7+ {[%emt 0:01:04]} Kf6 {[%emt 0:00:10]} 51. Qa3 {[%emt 0:01:38]} Qd8 {[%emt 0:01:35]} 52. Qg3 {[%emt 0:01:00]} Nf7 $19 {[%emt 0:00:38]} 53. Qd3 {[%emt 0:00:36]} Qd6 {[%emt 0:00:25]} 54. Qc3 {[%emt 0:00:25]} Nh6 {[%emt 0:01:49]} 55. g3 {[%emt 0:00:31]} Kg7 {[%emt 0:02:33]} 56. Kg2 {[%emt 0:00:26]} Ng4 {[%emt 0:02:16]} 57. Qa5 {[%emt 0:00:39]} Nh6 {[%emt 0:03:25]} 58. Qa7+ {[%emt 0:00:23]} Nf7 {[%emt 0:00:27]} 59. Qe3 {[%emt 0:00:38]} e4 {[%emt 0:02:44]} 60. Kf2 {[%emt 0:00:31]} Qf6 {[%emt 0:02:57]} 61. Qd2 {[%emt 0:00:28]} Ne5 {[%emt 0:00:36]} 62. Qc2 {[%emt 0:00:27]} Ng4+ {[%emt 0:01:01]} 63. Ke1 {[%emt 0:00:34]} Qa1+ {[%emt 0:00:28]} 64. Ke2 {[%emt 0:00:22]} Qd4 {[%emt 0:00:26]} 65. Qd2 {[%emt 0:00:34]} Qf2+ {[%emt 0:07:55]} 66. Kd1 {[%emt 0:00:02]} Qxg3 {[%emt 0:00:10]} 67. Qd4+ {[%emt 0:01:00]} Qe5 {[%emt 0:02:23]} 68. Qa7+ {[%emt 0:00:19]} Kh6 {[%emt 0:00:41]} 69. Qa8 {[%emt 0:00:43]} Qf6 {[%emt 0:02:13]} 70. Qb8 {[%emt 0:00:27]} Ne5 {[%emt 0:02:12]} 71. Bb7 {[%emt 0:00:31]} Nf7 {[%emt 0:02:12]} 72. Qf8+ {[%emt 0:00:32]} Kh7 {[%emt 0:02:47]} 73. Bc6 {[%emt 0:00:26]} Qg7 {[%emt 0:00:48]} 74. Qe7 {[%emt 0:00:23]} Ne5 {[%emt 0:00:16]} 75. Qe6 {[%emt 0:00:34]} e3 {[%emt 0:01:21]} 76. Be8 {[%emt 0:00:34]} Nc4 {[%emt 0:02:15]} 77. d6 {[%emt 0:00:33]} Qd4+ {[%emt 0:00:44]} 0-1

[Event "SVK-ch Open 2018"]
[Site "Banska Stiavnica"]
[Date "2018.07.08"]
[Round "2"]
[White "Bojda, Lubomir"]
[Black "Stockova, Zuzana"]
[Result "1/2-1/2"]
[ECO "C00"]
[WhiteElo "2064"]
[BlackElo "2301"]
[Annotator "NA"]
[PlyCount "31"]
[EventDate "2018.07.07"]
[EventType "swiss"]
[EventCountry "SVK"]
[SourceTitle "playchess.com"]
[Source "ChessBase"]
[SourceQuality "1"]
[TimeControl "40/5400+30:1800+30"]

1. e4 {[%emt 0:00:32]} e6 {[%emt 0:01:23]} 2. Qe2 {[%emt 0:05:12]} c5 {[%emt 0:03:55]} 3. f4 {[%emt 0:03:40]} Nc6 {[%emt 0:02:52]} 4. Nf3 {[%emt 0:00:14]} Be7 {[%emt 0:01:14]} 5. g3 {[%emt 0:06:49]} d5 {[%emt 0:01:29]} 6. e5 {[%emt 0:01:51]} Nh6 {[%emt 0:01:37]} 7. Bg2 {[%emt 0:00:17]} Nf5 {[%emt 0:00:45]} 8. O-O {[%emt 0:01:38]} h5 {[%emt 0:00:26]} 9. c3 {[%emt 0:05:20]} c4 {[%emt 0:06:58]} 10. Bh3 $15 {[%emt 0:04:39]} Bc5+ {[%emt 0:09:32]} 11. Kg2 {[%emt 0:02:11]} Nce7 {[%emt 0:10:29]} 12. b3 {[%emt 0:04:12]} b5 {[%emt 0:23:01]} 13. Ba3 {[%emt 0:04:45]} Bb6 {[%emt 0:01:24]} 14. Bxe7 {[%emt 0:00:35]} Qxe7 {[%emt 0:04:16]} 15. Bxf5 {[%emt 0:01:20]} exf5 {[%emt 0:01:01]} 16. d4 {[%emt 0:01:12]} 1/2-1/2

[Event "SVK-ch Open 2018"]
[Site "Banska Stiavnica"]
[Date "2018.07.08"]
[Round "2"]
[White "Ferkova, Dominika"]
[Black "Gelle, Istvan"]
[Result "1-0"]
[ECO "D31"]
[WhiteElo "2053"]
[BlackElo "2344"]
[Annotator "NA"]
[PlyCount "59"]
[EventDate "2018.07.07"]
[EventType "swiss"]
[EventCountry "SVK"]
[SourceTitle "playchess.com"]
[Source "ChessBase"]
[SourceQuality "1"]
[TimeControl "40/5400+30:1800+30"]

1. d4 {[%emt 0:00:00]} d5 {[%emt 0:00:00]} 2. c4 {[%emt 0:00:00]} c6 {[%emt 0:00:00]} 3. Nc3 {[%emt 0:00:00]} dxc4 {[%emt 0:00:00]} 4. Nf3 {[%emt 0:00:37]} b5 {[%emt 0:01:56]} 5. e3 {[%emt 0:02:06]} e6 {[%emt 0:03:09]} 6. a4 {[%emt 0:01:30]} Bb4 {[%emt 0:06:39]} 7. Bd2 {[%emt 0:01:45]} Qb6 {[%emt 0:05:01]} 8. Ne5 {[%emt 0:12:23]} Nf6 $14 {[%emt 0:10:34] LiveBook: 4 Games} 9. axb5 {[%emt 0:07:48]} cxb5 {[%emt 0:02:13]} 10. b3 {[%emt 0:01:16]} Nd5 {[%emt 0:10:20]} 11. Rc1 {[%emt 0:39:53]} Nxc3 {[%emt 0:15:32]} 12. Bxc3 {[%emt 0:00:14]} Bxc3+ {[%emt 0:03:34]} 13. Rxc3 {[%emt 0:00:09]} Qa5 {[%emt 0:02:52]} 14. Qd2 {[%emt 0:01:46]} f6 {[%emt 0:03:07]} 15. Nf3 {[%emt 0:02:20]} Nc6 {[%emt 0:06:25]} 16. Be2 {[%emt 0:05:42]} Ba6 {[%emt 0:04:31]} 17. bxc4 {[%emt 0:00:58]} b4 {[%emt 0:01:00]} 18. Rc1 {[%emt 0:00:51]} b3 {[%emt 0:07:24]} 19. Qxa5 {[%emt 0:03:19]} Nxa5 {[%emt 0:00:11]} 20. c5 {[%emt 0:00:48]} b2 {[%emt 0:02:32]} 21. Rb1 {[%emt 0:00:21]} Bxe2 {[%emt 0:00:35]} 22. Kxe2 {[%emt 0:00:06]} Rb8 {[%emt 0:00:51]} 23. Kd3 {[%emt 0:02:02]} Kd7 {[%emt 0:04:13]} 24. Kc2 {[%emt 0:00:37]} Nc4 {[%emt 0:04:34]} 25. Kc3 {[%emt 0:00:13]} a5 {[%emt 0:01:29]} 26. Kxc4 {[%emt 0:01:24]} Rb4+ {[%emt 0:00:10]} 27. Kc3 {[%emt 0:00:09]} Rhb8 {[%emt 0:00:08]} 28. Nd2 {[%emt 0:00:08]} a4 {[%emt 0:01:06]} 29. Nc4 {[%emt 0:01:51]} Kc6 {[%emt 0:02:12]} 30. Nb6 {[%emt 0:03:49]} 1-0

[Event "SVK-ch Open 2018"]
[Site "Banska Stiavnica"]
[Date "2018.07.08"]
[Round "2"]
[White "Tepper, Frantisek"]
[Black "Chmiel, Marcin"]
[Result "1/2-1/2"]
[ECO "C54"]
[WhiteElo "2050"]
[BlackElo "2249"]
[Annotator "NA"]
[PlyCount "104"]
[EventDate "2018.07.07"]
[EventType "swiss"]
[EventCountry "SVK"]
[SourceTitle "playchess.com"]
[Source "ChessBase"]
[SourceQuality "1"]
[TimeControl "40/5400+30:1800+30"]

1. e4 {[%emt 0:00:00]} e5 {[%emt 0:00:00]} 2. Nf3 {[%emt 0:00:00]} Nc6 {[%emt 0:00:06]} 3. Bc4 {[%emt 0:02:11]} Bc5 {[%emt 0:00:10]} 4. c3 {[%emt 0:01:21]} Nf6 {[%emt 0:00:13]} 5. d3 {[%emt 0:01:18]} a6 {[%emt 0:00:25]} 6. O-O {[%emt 0:05:04]} d6 {[%emt 0:00:40]} 7. Bb3 {[%emt 0:00:12]} Ba7 {[%emt 0:00:28]} 8. Be3 {[%emt 0:04:17]} h6 {[%emt 0:01:24] C54: Giuoco Piano: 4 c3 Nf6, main lines with 5 d4 and 5 d3} (8... O-O 9. Nbd2 Ne7 10. Bxa7 Rxa7 11. Nh4 a5 12. f4 a4 13. Bc2 Ng4 14. Qe2 Nc6 15. g3 Kh8 16. f5 {½-½ (38) Alekseev,E (2617)-Boruchovsky,A (2542) Batumi 2018}) 9. Nbd2 {[%emt 0:00:24]} O-O {[%emt 0:00:51]} 10. Bxa7 {[%emt 0:01:02]} Rxa7 {[%emt 0:00:14]} 11. Re1 {[%emt 0:00:15]} Nh5 {[%emt 0:05:29]} 12. Nf1 {[%emt 0:06:26]} Qf6 {[%emt 0:02:32] LiveBook: 3 Games} 13. Ne3 {[%emt 0:01:13]} Nf4 {[%emt 0:03:05]} 14. Nd5 {[%emt 0:06:14]} Nxd5 {[%emt 0:00:33]} 15. exd5 {[%emt 0:01:01]} Ne7 {[%emt 0:00:22]} 16. d4 $146 {[%emt 0:00:08]} ({Predecessor:} 16. Nd2) 16... Bg4 {[%emt 0:07:05]} 17. dxe5 {[%emt 0:03:51]} dxe5 {[%emt 0:00:16]} 18. Qd3 {[%emt 0:00:29]} Bxf3 {[%emt 0:02:07]} 19. Qxf3 {[%emt 0:00:04]} Qxf3 {[%emt 0:00:12]} 20. gxf3 {[%emt 0:00:06]} Ng6 {[%emt 0:00:27]} 21. Rad1 {[%emt 0:05:03]} Rd8 {[%emt 0:05:34]} 22. Kf1 {[%emt 0:09:04]} Kf8 {[%emt 0:05:10]} 23. Bc2 {[%emt 0:10:04]} Nh4 {[%emt 0:02:33]} 24. Rxe5 {[%emt 0:00:14]} Nxf3 {[%emt 0:00:11]} 25. Re4 $11 {[%emt 0:00:14]} Raa8 {[%emt 0:04:49]} 26. Kg2 {[%emt 0:00:32]} Ng5 {[%emt 0:00:41]} 27. Red4 {[%emt 0:00:54]} f6 {[%emt 0:04:34]} 28. d6 {[%emt 0:07:11]} Ne6 {[%emt 0:03:39]} 29. Re4 {[%emt 0:00:19]} Nc5 {[%emt 0:01:40]} 30. Red4 {[%emt 0:01:36]} cxd6 {[%emt 0:03:53]} 31. Rxd6 {[%emt 0:00:02]} Ke7 {[%emt 0:01:11]} 32. Rxd8 {[%emt 0:00:50]} Rxd8 {[%emt 0:00:08]} 33. Rxd8 {[%emt 0:00:04]} Kxd8 {[%emt 0:00:13]} 34. Kf3 {[%emt 0:00:10]} Ke7 {[%emt 0:00:50]} 35. Kg4 {[%emt 0:00:18]} Nd7 {[%emt 0:04:17]} 36. f4 {[%emt 0:01:57]} g5 {[%emt 0:01:40]} 37. Bf5 {[%emt 0:05:36]} Nc5 {[%emt 0:02:33]} 38. fxg5 {[%emt 0:05:36]} hxg5 {[%emt 0:01:40]} 39. b4 {[%emt 0:01:11]} Na4 {[%emt 0:04:37]} 40. c4 {[%emt 0:00:18]} b6 {[%emt 0:08:21]} 41. Bc2 {[%emt 0:33:52]} Nc3 {[%emt 0:34:56]} 42. a3 {[%emt 0:02:39]} Ke6 {[%emt 0:03:00]} 43. Bd3 {[%emt 0:00:19]} Ke5 {[%emt 0:11:10]} 44. c5 {[%emt 0:00:19]} bxc5 {[%emt 0:04:46]} 45. Bxa6 {[%emt 0:00:16]} Ne4 {[%emt 0:00:00]} 46. bxc5 {[%emt 0:00:00]} f5+ {[%emt 0:00:00]} 47. Kf3 {[%emt 0:00:00]} g4+ {[%emt 0:00:00]} 48. Kg2 {[%emt 0:00:00]} Nxc5 {[%emt 0:00:00]} 49. Bb5 {[%emt 0:00:00]} Kf4 {[%emt 0:00:00]} 50. a4 {[%emt 0:00:00]} Nb3 {[%emt 0:00:00]} 51. Bd7 {[%emt 0:00:00]} Kg5 {[%emt 0:00:00]} 52. a5 {[%emt 0:00:00]} Nxa5 {[%emt 0:00:00]} 1/2-1/2